fUSD/lending_fUSD_20260509
["ID","MTS","AMOUNT","RATE_DAILY","PERIOD"]
[421913215,1778329833000,-500.0,0.00013698,2]
[421913217,1778329833000,-500.0,0.00013698,2]
[421913216,1778329833000,-500.0,0.00013698,2]
[421913218,1778329833000,-500.0,0.00013698,2]
[421913220,1778329833000,-500.0,0.00013698,2]
[421913219,1778329833000,-500.0,0.00013698,2]
[421913221,1778329833000,-500.0,0.00013698,2]
[421913224,1778329833000,-500.0,0.00013698,2]
[421913223,1778329833000,-500.0,0.00013698,2]
[421913202,1778329833000,-504.56234086,0.00013698,2]
[421913226,1778329833000,-166.82,0.00013699,2]
[421913214,1778329833000,-500.0,0.00013698,2]
[421913198,1778329833000,-500.0,0.00013698,2]
[421913182,1778329833000,-500.0,0.000135,2]
[421913200,1778329833000,-500.0,0.00013698,2]
[421913225,1778329833000,-500.0,0.00013698,2]
[421913174,1778329833000,-500.0,0.000135,2]
[421913176,1778329833000,-500.0,0.000135,2]
[421913178,1778329833000,-500.0,0.000135,2]
[421913180,1778329833000,-500.0,0.000135,2]
[421913177,1778329833000,-151.0,0.000135,2]
[421913175,1778329833000,-151.0,0.000135,2]
[421913179,1778329833000,-151.0,0.000135,2]
[421913184,1778329833000,-500.0,0.000135,2]
[421913181,1778329833000,-151.0,0.000135,2]
[421913183,1778329833000,-151.0,0.000135,2]
[421913199,1778329833000,-500.0,0.00013698,2]
[421913185,1778329833000,-151.0,0.000135,2]
[421913186,1778329833000,-500.0,0.000135,2]
[421913188,1778329833000,-500.0,0.000135,2]
[421913189,1778329833000,-151.0,0.000135,2]
[421913190,1778329833000,-151.0,0.000135,2]
[421913191,1778329833000,-151.0,0.000135,2]
[421913192,1778329833000,-151.0,0.000135,2]
[421913194,1778329833000,-151.0,0.000135,2]
[421913193,1778329833000,-151.0,0.000135,2]
[421913196,1778329833000,-151.0,0.000135,2]
[421913195,1778329833000,-151.0,0.000135,2]
[421913197,1778329833000,-2080.17592889,0.000135,2]
[421913187,1778329833000,-151.0,0.000135,2]
[421913227,1778329833000,-200.0,0.00013699,2]
[421913259,1778329833000,-587.0,0.0001446,2]
[421913228,1778329833000,-2500.0,0.00013699,2]
[421913260,1778329833000,-181.08010149,0.00014461,2]
[421913262,1778329833000,-152.0,0.00014474,2]
[421913261,1778329833000,-152.0,0.00014474,2]
[421913263,1778329833000,-1093.42636637,0.00014503,5]
[421913265,1778329833000,-1020.57,0.00014504,2]
[421913270,1778329833000,-2845.7,0.00014504,2]
[421913267,1778329833000,-9999.99,0.00014504,2]
[421913229,1778329833000,-150.99,0.00013699,2]
[421913269,1778329833000,-9999.99,0.00014504,2]
[421913266,1778329833000,-13871.08,0.00014504,2]
[421913268,1778329833000,-9999.99,0.00014504,2]
[421913257,1778329833000,-150.0,0.00014344,2]
[421913272,1778329833000,-350.0,0.00014532,2]
[421913271,1778329833000,-2351.0,0.00014519,2]
[421913273,1778329833000,-150.0,0.00014558,2]
[421913275,1778329833000,-2236.95670848,0.00014596,2]
[421913276,1778329833000,-200.0,0.000146,5]
[421913277,1778329833000,-152.0,0.00014603,7]
[421913280,1778329833000,-152.0,0.00014636,7]
[421913279,1778329833000,-152.0,0.00014619,7]
[421913282,1778329833000,-500.0,0.000147,5]
[421913281,1778329833000,-350.0,0.00014687,2]
[421913278,1778329833000,-152.0,0.00014603,7]
[421913283,1778329833000,-760.93406,0.0001475,2]
[421913274,1778329833000,-200.0,0.00014596,2]
[421913253,1778329833000,-187.94100397,0.00014247,21]
[421913264,1778329833000,-151.0,0.00014504,2]
[421913254,1778329833000,-150.00000001,0.00014247,21]
[421913230,1778329833000,-519.92,0.00013699,2]
[421913234,1778329833000,-8795.63,0.00013699,2]
[421913258,1778329833000,-350.0,0.00014434,2]
[421913232,1778329833000,-999.99,0.00013699,2]
[421913231,1778329833000,-589.58,0.00013699,2]
[421913237,1778329833000,-578.20924308,0.00013913,2]
[421913235,1778329833000,-150.0,0.00013702,2]
[421913236,1778329833000,-159.88,0.00013765,2]
[421913238,1778329833000,-174.61919141,0.00013913,2]
[421913239,1778329833000,-209.40437684,0.00013913,2]
[421913240,1778329833000,-151.0,0.00013913,2]
[421913241,1778329833000,-150.0,0.00013916,2]
[421913233,1778329833000,-1147.46,0.00013699,2]
[421913243,1778329833000,-151.0,0.00013968,2]
[421913242,1778329833000,-166.58,0.00013936,2]
[421913256,1778329833000,-492.61,0.00014334,2]
[421913252,1778329833000,-4117.91031522,0.00014207,2]
[421913249,1778329833000,-2157.14243826,0.00014048,2]
[421913247,1778329833000,-151.0,0.00014023,2]
[421913255,1778329833000,-433.0,0.00014255,2]
[421913251,1778329833000,-150.0,0.0001413,2]
[421913248,1778329833000,-200.0,0.00014048,2]
[421913246,1778329833000,-250.0,0.00014,2]
[421913245,1778329833000,-175.74,0.00013985,2]
[421913244,1778329833000,-150.0,0.00013982,2]
[421913250,1778329833000,-158.09655178,0.00014078,2]
[421913297,1778329834000,-441.26,0.00014853,2]
[421913301,1778329834000,-332.40506246,0.000149,2]
[421913304,1778329834000,-760.93406,0.000149,2]
[421913303,1778329834000,-760.93406,0.000149,2]
[421913300,1778329834000,-160.0,0.000149,2]
[421913299,1778329834000,-160.0,0.000149,2]
[421913298,1778329834000,-21888.77273771,0.00014861,2]
[421913296,1778329834000,-441.26,0.00014853,2]
[421913294,1778329834000,-441.26,0.00014853,2]
[421913288,1778329834000,-151.0,0.000148,2]
[421913291,1778329834000,-441.2840287,0.00014853,2]
[421913295,1778329834000,-441.26,0.00014853,2]
[421913293,1778329834000,-441.26,0.00014853,2]
[421913289,1778329834000,-151.0,0.000148,2]
[421913302,1778329834000,-1100.0,0.000149,5]
[421913287,1778329834000,-150.0,0.00014772,2]
[421913286,1778329834000,-3626.30650122,0.00014771,2]
[421913285,1778329834000,-760.93406,0.0001475,2]
[421913284,1778329834000,-760.93407,0.0001475,2]
[421913292,1778329834000,-441.26,0.00014853,2]
[421913306,1778329834000,-2831.97940818,0.000149,2]
[421913290,1778329834000,-800.0,0.000148,5]
[421913308,1778329834000,-2000.0,0.00014961,2]
[421913305,1778329834000,-760.93406,0.000149,2]
[421913328,1778329834000,-555672.5408257,0.00015,2]
[421913327,1778329834000,-198385.11329555,0.00015,2]
[421913326,1778329834000,-150.0,0.00015,2]
[421913324,1778329834000,-500.0,0.00014999,2]
[421913322,1778329834000,-500.0,0.00014999,2]
[421913323,1778329834000,-509.86538559,0.00014999,2]
[421913321,1778329834000,-500.0,0.00014999,2]
[421913320,1778329834000,-249.28311863,0.00014999,2]
[421913318,1778329834000,-442.96109443,0.00014999,2]
[421913325,1778329834000,-890.0,0.00015,5]
[421913316,1778329834000,-500.0,0.00014999,2]
[421913317,1778329834000,-500.0,0.00014999,2]
[421913315,1778329834000,-155.86383988,0.0001499,2]
[421913313,1778329834000,-165.02133297,0.00014986,2]
[421913312,1778329834000,-150.0,0.00014986,2]
[421913314,1778329834000,-150.0,0.00014986,2]
[421913311,1778329834000,-150.0,0.00014986,2]
[421913309,1778329834000,-500.0,0.00014973,2]
[421913307,1778329834000,-167.83,0.00014936,2]
[421913310,1778329834000,-500.0,0.00014973,2]
[421913319,1778329834000,-500.0,0.00014999,2]
[421913330,1778329835000,-2315.08562182,0.00015,2]
[421913332,1778329835000,-173.97872682,0.00015,2]
[421913329,1778329835000,-500.0,0.00012227,2]
[421913333,1778329835000,-464.72178409,0.00015,2]
[421913335,1778329835000,-250.0,0.00012227,2]
[421913331,1778329835000,-500.0,0.00012227,2]
[421913339,1778329838000,-250.0,0.00012227,2]
[421913350,1778329838000,-500.0,0.00012227,2]
[421913341,1778329838000,-500.0,0.00012227,2]
[421913343,1778329838000,-500.0,0.00012227,2]
[421913342,1778329838000,-500.0,0.00012227,2]
[421913340,1778329838000,-500.0,0.00012227,2]
[421913344,1778329838000,-500.0,0.00012227,2]
[421913345,1778329838000,-500.0,0.00012227,2]
[421913348,1778329838000,-500.0,0.00012227,2]
[421913347,1778329838000,-500.0,0.00012227,2]
[421913346,1778329838000,-500.0,0.00012227,2]
[421913354,1778329838000,-500.0,0.00012227,2]
[421913363,1778329838000,-290.570001,0.00015,2]
[421913353,1778329838000,-484.31138388,0.00012227,2]
[421913362,1778329838000,-100869.14463014,0.00015,2]
[421913360,1778329838000,-500.0,0.00012227,2]
[421913349,1778329838000,-500.0,0.00012227,2]
[421913359,1778329838000,-500.0,0.00012227,2]
[421913358,1778329838000,-500.0,0.00012227,2]
[421913361,1778329838000,-25531.99955189,0.00015,2]
[421913356,1778329838000,-403.49104458,0.00012227,2]
[421913355,1778329838000,-500.0,0.00012227,2]
[421913351,1778329838000,-500.0,0.00012227,2]
[421913352,1778329838000,-15.68861612,0.00012227,2]
[421913357,1778329838000,-96.50895542,0.00012227,2]
[421913542,1778329840000,-1198.20846186,0.00015,2]
[421913541,1778329840000,-502.98763046,0.00015,2]
[421913540,1778329840000,-14028.58845492,0.00015,2]
[421913539,1778329840000,-7834.60226826,0.00015,2]
[421913550,1778329843000,-143.24984728,0.00012227,2]
[421913549,1778329843000,-356.75015272,0.00012227,2]
[421913548,1778329843000,-500.0,0.00012227,2]
[421913551,1778329843000,-455.62035855,0.00012227,2]
[421913565,1778329846000,-500.0,0.00012227,2]
[421913564,1778329846000,-44.37964145,0.00012227,2]
[421913566,1778329846000,-500.0,0.00012227,2]
[421913569,1778329846000,-500.0,0.00012227,2]
[421913570,1778329846000,-500.0,0.00012227,2]
[421913568,1778329846000,-500.0,0.00012227,2]
[421913572,1778329846000,-500.0,0.00012227,2]
[421913567,1778329846000,-500.0,0.00012227,2]
[421913573,1778329846000,-189.45309127,0.00012227,2]
[421913574,1778329846000,-310.54690873,0.00012227,2]
[421913575,1778329846000,-298.12631536,0.00012227,2]
[421913571,1778329846000,-500.0,0.00012227,2]
[421913578,1778329907000,-201.87368464,0.00012227,2]
[421913581,1778330002000,-200.0,0.00013226,2]
[421913579,1778330002000,-150.0,0.00013226,2]
[421913580,1778330002000,-150.0,0.00013226,2]
[421913586,1778330002000,-30.95696137,0.00013226,2]
[421913584,1778330002000,-30.95696137,0.00013226,2]
[421913583,1778330002000,-169.04303863,0.00013226,2]
[421913585,1778330002000,-469.04303863,0.00013226,2]
[421913582,1778330002000,-300.0,0.00013226,2]
[421913592,1778330003000,-30.95696137,0.00013226,2]
[421913591,1778330003000,-469.04303863,0.00013226,2]
[421913589,1778330003000,-469.04303863,0.00013226,2]
[421913588,1778330003000,-30.95696137,0.00013226,2]
[421913587,1778330003000,-469.04303863,0.00013226,2]
[421913590,1778330003000,-30.95696137,0.00013226,2]
[421913593,1778330004000,-119.04303863,0.00013226,2]
[421913594,1778330004000,-380.95696137,0.00013226,2]
[421913595,1778330004000,-150.0,0.00012226,2]
[421913597,1778330004000,-150.0,0.00013226,2]
[421913598,1778330004000,-80.95696137,0.00013226,2]
[421913596,1778330004000,-119.04303863,0.00013226,2]
[421913601,1778330359000,155.66,6.828e-05,2]
[421913602,1778330552000,423.0,0.0003,120]
[421913603,1778330560000,234.28,0.00029452,120]
[421913604,1778330569000,200.0,0.0003,120]
[421913605,1778330580000,400.0,0.0003,120]
[421913606,1778330601000,300.0,0.0003,120]
[421913624,1778330852000,-150.0,0.00013355,2]
[421913623,1778330852000,-867.95,0.00013268,2]
[421913626,1778330852000,-3443.51,0.0001348,2]
[421913622,1778330852000,-150.0,0.00013175,2]
[421913628,1778330852000,-150.0,0.00013536,2]
[421913629,1778330852000,-2000.0,0.00013586,2]
[421913631,1778330852000,-1082.51,0.00013621,2]
[421913627,1778330852000,-208.0536425,0.00013498,2]
[421913620,1778330852000,-150.0,0.00012995,2]
[421913630,1778330852000,-867.95,0.00013599,2]
[421913618,1778330852000,-150.0,0.00012995,2]
[421913619,1778330852000,-150.0,0.00012995,2]
[421913616,1778330852000,-150.69261961,0.00012995,2]
[421913615,1778330852000,-246.68205029,0.00012995,2]
[421913617,1778330852000,-150.0,0.00012995,2]
[421913613,1778330852000,-150.0,0.00012995,2]
[421913614,1778330852000,-150.0,0.00012995,2]
[421913612,1778330852000,-300.0,0.00012994,2]
[421913611,1778330852000,-5910.99,0.00012873,2]
[421913621,1778330852000,-150.0,0.00013142,2]
[421913632,1778330852000,-500.0,0.00013698,2]
[421913625,1778330852000,-1852.42,0.00013388,2]
[421913633,1778330852000,-187.38,0.00013699,2]
[421913634,1778330852000,-2464.27,0.00013699,2]
[421913655,1778330852000,-500.0,0.00013923,2]
[421913653,1778330852000,-4477.34,0.00013902,2]
[421913652,1778330852000,-500.0,0.00013902,2]
[421913649,1778330852000,-4378.43,0.00013874,2]
[421913650,1778330852000,-150.0,0.00013897,2]
[421913645,1778330852000,-150.0,0.00013873,2]
[421913648,1778330852000,-1910.78,0.00013874,2]
[421913647,1778330852000,-9999.99,0.00013874,2]
[421913646,1778330852000,-276.88,0.00013874,2]
[421913651,1778330852000,-537.53221972,0.00013901,2]
[421913644,1778330852000,-164.464,0.00013873,2]
[421913643,1778330852000,-955.149,0.00013873,2]
[421913635,1778330852000,-300.0,0.000137,5]
[421913639,1778330852000,-214.73073128,0.00013752,2]
[421913636,1778330852000,-150.0,0.00013716,2]
[421913637,1778330852000,-150.0,0.00013716,2]
[421913654,1778330852000,-150.99,0.00013902,2]
[421913640,1778330852000,-600.0,0.000138,5]
[421913642,1778330852000,-2591.01,0.00013851,2]
[421913641,1778330852000,-322.51063662,0.00013812,2]
[421913638,1778330852000,-150.0,0.00013716,2]
[421913672,1778330853000,-500.0,0.00014032,2]
[421913666,1778330853000,-500.0,0.00014032,2]
[421913671,1778330853000,-500.0,0.00014032,2]
[421913670,1778330853000,-500.0,0.00014032,2]
[421913668,1778330853000,-500.0,0.00014032,2]
[421913669,1778330853000,-500.0,0.00014032,2]
[421913667,1778330853000,-500.0,0.00014032,2]
[421913665,1778330853000,-500.0,0.00014032,2]
[421913659,1778330853000,-500.0,0.00014032,2]
[421913663,1778330853000,-500.0,0.00014032,2]
[421913660,1778330853000,-500.0,0.00014032,2]
[421913662,1778330853000,-500.0,0.00014032,2]
[421913661,1778330853000,-500.0,0.00014032,2]
[421913658,1778330853000,-500.0,0.00014032,2]
[421913656,1778330853000,-867.95,0.00013931,2]
[421913657,1778330853000,-250.0,0.00014,2]
[421913673,1778330853000,-500.0,0.00014032,2]
[421913664,1778330853000,-500.0,0.00014032,2]
[421913674,1778330853000,-500.0,0.00014032,2]
[421913680,1778330853000,-500.0,0.00014032,2]
[421913677,1778330853000,-500.0,0.00014032,2]
[421913694,1778330853000,-500.0,0.00014032,2]
[421913693,1778330853000,-500.0,0.00014032,2]
[421913692,1778330853000,-500.0,0.00014032,2]
[421913675,1778330853000,-500.0,0.00014032,2]
[421913690,1778330853000,-500.0,0.00014032,2]
[421913689,1778330853000,-500.0,0.00014032,2]
[421913688,1778330853000,-500.0,0.00014032,2]
[421913687,1778330853000,-332.6666911,0.00014032,2]
[421913684,1778330853000,-500.0,0.00014032,2]
[421913691,1778330853000,-500.0,0.00014032,2]
[421913685,1778330853000,-500.0,0.00014032,2]
[421913683,1778330853000,-500.0,0.00014032,2]
[421913682,1778330853000,-500.0,0.00014032,2]
[421913681,1778330853000,-500.0,0.00014032,2]
[421913679,1778330853000,-500.0,0.00014032,2]
[421913678,1778330853000,-500.0,0.00014032,2]
[421913686,1778330853000,-500.0,0.00014032,2]
[421913676,1778330853000,-500.0,0.00014032,2]
[421913703,1778330854000,-500.0,0.00014032,2]
[421913704,1778330854000,-500.0,0.00014032,2]
[421913702,1778330854000,-500.0,0.00014032,2]
[421913701,1778330854000,-500.0,0.00014032,2]
[421913696,1778330854000,-500.0,0.00014032,2]
[421913700,1778330854000,-500.0,0.00014032,2]
[421913698,1778330854000,-500.0,0.00014032,2]
[421913697,1778330854000,-500.0,0.00014032,2]
[421913695,1778330854000,-500.0,0.00014032,2]
[421913705,1778330854000,-500.0,0.00014032,2]
[421913699,1778330854000,-500.0,0.00014032,2]
[421913706,1778330854000,-500.0,0.00014032,2]
[421913713,1778330854000,-500.0,0.00014032,2]
[421913708,1778330854000,-500.0,0.00014032,2]
[421913707,1778330854000,-500.0,0.00014032,2]
[421913717,1778330854000,-455.58227849,0.00014032,2]
[421913718,1778330854000,-500.0,0.00014032,2]
[421913715,1778330854000,-500.0,0.00014032,2]
[421913716,1778330854000,-500.0,0.00014032,2]
[421913719,1778330854000,-93155.04859651,0.00014033,2]
[421913712,1778330854000,-500.0,0.00014032,2]
[421913711,1778330854000,-500.0,0.00014032,2]
[421913709,1778330854000,-298.07407679,0.00014032,2]
[421913710,1778330854000,-500.0,0.00014032,2]
[421913714,1778330854000,-500.0,0.00014032,2]
[421913776,1778331032000,-500.0,0.00014073,2]
[421913766,1778331032000,-211.58662156,0.00014073,2]
[421913767,1778331032000,-150.0,0.00014073,2]
[421913768,1778331032000,-500.0,0.00014073,2]
[421913770,1778331032000,-160.77479797,0.00014073,2]
[421913772,1778331032000,-243.80766771,0.00014073,2]
[421913771,1778331032000,-150.0,0.00014073,2]
[421913774,1778331032000,-500.0,0.00014073,2]
[421913773,1778331032000,-500.0,0.00014073,2]
[421913775,1778331032000,-500.0,0.00014073,2]
[421913782,1778331032000,-150.0,0.00014073,2]
[421913781,1778331032000,-500.0,0.00014073,2]
[421913777,1778331032000,-500.0,0.00014073,2]
[421913778,1778331032000,-500.0,0.00014073,2]
[421913765,1778331032000,-150.0,0.00014073,2]
[421913779,1778331032000,-500.0,0.00014073,2]
[421913783,1778331032000,-419.04303863,0.00014073,2]
[421913785,1778331032000,-500.0,0.00014073,2]
[421913786,1778331032000,-500.0,0.00014073,2]
[421913784,1778331032000,-218.76245013,0.00014073,2]
[421913790,1778331032000,-502.14369504,0.00014073,2]
[421913780,1778331032000,-500.0,0.00014073,2]
[421913788,1778331032000,-500.0,0.00014073,2]
[421913761,1778331032000,-500.0,0.00014073,2]
[421913764,1778331032000,-150.0,0.00014073,2]
[421913733,1778331032000,-168.49,0.00013891,2]
[421913735,1778331032000,-900.0,0.000139,5]
[421913739,1778331032000,-65.51,0.00014032,2]
[421913737,1778331032000,-500.0,0.00014032,2]
[421913745,1778331032000,-457.69356822,0.00014032,2]
[421913747,1778331032000,-445.67308784,0.00014032,2]
[421913749,1778331032000,-500.0,0.00014032,2]
[421913746,1778331032000,-500.0,0.00014032,2]
[421913748,1778331032000,-500.0,0.00014032,2]
[421913751,1778331032000,-150.0,0.00014032,2]
[421913769,1778331032000,-500.0,0.00014073,2]
[421913750,1778331032000,-500.0,0.00014032,2]
[421913755,1778331032000,-3439.1305685,0.00014033,2]
[421913752,1778331032000,-500.0,0.00014032,2]
[421913756,1778331032000,-500.0,0.00014073,2]
[421913754,1778331032000,-140755.38144539,0.00014033,2]
[421913757,1778331032000,-500.0,0.00014073,2]
[421913758,1778331032000,-500.0,0.00014073,2]
[421913760,1778331032000,-520.03674198,0.00014073,2]
[421913759,1778331032000,-500.0,0.00014073,2]
[421913763,1778331032000,-164.46104911,0.00014073,2]
[421913762,1778331032000,-559.4850956,0.00014073,2]
[421913753,1778331032000,-214.73073128,0.00014032,2]
[421913793,1778331032000,-500.0,0.00014073,2]
[421913816,1778331032000,-231.27312843,0.0001424,2]
[421913796,1778331032000,-500.0,0.00014073,2]
[421913819,1778331032000,-500.0,0.0001424,2]
[421913822,1778331032000,-500.0,0.0001424,2]
[421913824,1778331032000,-500.0,0.0001424,2]
[421913823,1778331032000,-500.0,0.0001424,2]
[421913825,1778331032000,-500.0,0.0001424,2]
[421913826,1778331032000,-500.0,0.0001424,2]
[421913827,1778331032000,-209.40437684,0.0001424,2]
[421913829,1778331032000,-2080.17592889,0.0001424,2]
[421913830,1778331032000,-150.0,0.00014258,2]
[421913831,1778331032000,-867.95,0.00014263,2]
[421913832,1778331032000,-210.20484458,0.00014347,2]
[421913833,1778331032000,-150.0,0.00014347,2]
[421913828,1778331032000,-174.61919141,0.0001424,2]
[421913838,1778331032000,-296.88273632,0.00014347,2]
[421913836,1778331032000,-189.67110643,0.00014347,2]
[421913834,1778331032000,-150.0,0.00014347,2]
[421913837,1778331032000,-150.0,0.00014347,2]
[421913835,1778331032000,-150.0,0.00014347,2]
[421913839,1778331032000,-3263.67585108,0.00014347,2]
[421913841,1778331032000,-3802.49485918,0.00014372,2]
[421913840,1778331032000,-5000.0,0.00014348,2]
[421913818,1778331032000,-500.0,0.0001424,2]
[421913821,1778331032000,-500.0,0.0001424,2]
[421913791,1778331032000,-500.0,0.00014073,2]
[421913817,1778331032000,-500.0,0.0001424,2]
[421913820,1778331032000,-500.0,0.0001424,2]
[421913795,1778331032000,-500.0,0.00014073,2]
[421913792,1778331032000,-500.0,0.00014073,2]
[421913794,1778331032000,-500.0,0.00014073,2]
[421913797,1778331032000,-500.0,0.00014073,2]
[421913801,1778331032000,-2500.0,0.0001416,2]
[421913800,1778331032000,-150.0,0.00014077,2]
[421913799,1778331032000,-161.33151198,0.00014073,2]
[421913802,1778331032000,-2500.0,0.0001416,2]
[421913804,1778331032000,-2500.0,0.0001416,2]
[421913805,1778331032000,-2500.0,0.0001416,2]
[421913798,1778331032000,-544.95889557,0.00014073,2]
[421913806,1778331032000,-599.60298507,0.0001424,2]
[421913815,1778331032000,-151.0,0.0001424,2]
[421913803,1778331032000,-2500.0,0.0001416,2]
[421913813,1778331032000,-151.0,0.0001424,2]
[421913814,1778331032000,-151.0,0.0001424,2]
[421913811,1778331032000,-500.0,0.0001424,2]
[421913812,1778331032000,-151.0,0.0001424,2]
[421913809,1778331032000,-151.0,0.0001424,2]
[421913808,1778331032000,-151.0,0.0001424,2]
[421913807,1778331032000,-200.0,0.0001424,2]
[421913810,1778331032000,-151.0,0.0001424,2]
[421913847,1778331033000,-150.0,0.00014438,2]
[421913843,1778331033000,-171.6168297,0.00014426,2]
[421913844,1778331033000,-150.0,0.00014438,2]
[421913842,1778331033000,-470.90717182,0.00014373,2]
[421913846,1778331033000,-150.0,0.00014438,2]
[421913848,1778331033000,-150.0,0.00014438,2]
[421913850,1778331033000,-224.1691002,0.00014447,2]
[421913849,1778331033000,-155.86383987,0.00014438,2]
[421913851,1778331033000,-524.49818305,0.00014447,2]
[421913845,1778331033000,-150.0,0.00014438,2]
[421913857,1778331033000,-244644.32772113,0.00014448,2]
[421913856,1778331033000,-193309.6233556,0.00014448,2]
[421913861,1778331033000,-1430.66631438,0.00014448,2]
[421913860,1778331033000,-557.95149122,0.00014448,2]
[421913859,1778331033000,-1254.41808677,0.00014448,2]
[421913858,1778331033000,-346482.6125802,0.00014448,2]
[421913855,1778331033000,-230313.76695086,0.00014448,2]
[421913854,1778331033000,-150.0,0.00014448,2]
[421913853,1778331033000,-598.0,0.00014448,5]
[421913852,1778331033000,-173.0,0.00014448,2]
[421913862,1778331038000,-317.0,0.00014448,2]
[421913891,1778331039000,-3962.2502192,0.00014448,2]
[421913889,1778331039000,-25531.99955189,0.00014448,2]
[421913890,1778331039000,-472.19800184,0.00014448,2]
[421913888,1778331039000,-700.0,0.00014448,2]
[421913887,1778331039000,-260738.17612462,0.00014448,2]
[421913898,1778331040000,-6025.19104123,0.00014448,2]
[421913897,1778331040000,-265.1286,0.00014448,2]
[421913896,1778331040000,-13477.48796778,0.00014448,2]
[421913895,1778331040000,-62611.66836507,0.00014448,2]
[421913907,1778331043000,-286.46267096,0.00014448,2]
[421913909,1778331043000,-325.58015431,0.00014448,2]
[421913910,1778331043000,-7839.97237987,0.00014448,2]
[421913911,1778331043000,-1071.18168082,0.00014448,2]
[421913908,1778331043000,-640.86102165,0.00014448,2]
[421913913,1778331046000,-310.8,0.00014248,2]
[421913916,1778331046000,-2025.55,0.00014448,2]
[421913917,1778331046000,-2024.157,0.00014448,2]
[421913914,1778331046000,-2189.2,0.00014248,2]
[421913915,1778331046000,-3853.85995966,0.00014448,2]
[421913919,1778331046000,-809.97915874,0.00014448,2]
[421913924,1778331142000,842.65,6.809e-05,2]
[421913925,1778331142000,842.65,7.167e-05,2]
[421913927,1778331142000,842.65,7.884e-05,2]
[421913928,1778331142000,842.65,8.242e-05,2]
[421913926,1778331142000,842.65,7.525e-05,2]
[421913932,1778331143000,842.65,9.676e-05,2]
[421913930,1778331143000,842.65,8.959e-05,2]
[421913929,1778331143000,842.65,8.6e-05,2]
[421913931,1778331143000,842.65,9.317e-05,2]
[421913933,1778331159000,-611.65097781,0.00010034,2]
[421913934,1778331160000,-158.47,0.00010034,2]
[421913935,1778331480000,150.0,0.000301,120]
[421913937,1778331480000,654.52,0.0002709,120]
[421913936,1778331480000,654.52,0.0002709,120]
[421913938,1778331481000,392.71,0.00025585,120]
[421913939,1778331481000,392.71,0.00025585,120]
[421913940,1778331493000,2076.50360892,0.000301,120]
[421913941,1778331527000,-72.52902219,0.00010034,2]
[421913942,1778331527000,-250.0,0.00010213,2]
[421913944,1778331527000,-842.65,0.00010751,2]
[421913946,1778331527000,-234.0170913,0.00011037,2]
[421913943,1778331527000,-842.65,0.00010392,2]
[421913947,1778331527000,-250.0,0.00011037,2]
[421913949,1778331527000,-842.65,0.00011467,2]
[421913945,1778331527000,-160.0,0.00010807,2]
[421913951,1778331527000,-842.65,0.00012184,2]
[421913950,1778331527000,-842.65,0.00011826,2]
[421913952,1778331527000,-842.65,0.00012542,2]
[421913956,1778331527000,-1833.67388651,0.00012988,2]
[421913953,1778331527000,-842.65,0.00012901,2]
[421913954,1778331527000,-300.0,0.00012987,2]